fUST/lending_fUST_20241213
["ID","MTS","AMOUNT","RATE_DAILY","PERIOD"]
[345216361,1734091861911,-221.69,0.000298,31]
[345216362,1734091861921,-221.69,0.000298,31]
[345216363,1734091861931,-221.69,0.000298,31]
[345216364,1734091861941,-221.69,0.000298,31]
[345216365,1734091861951,-221.69,0.000298,31]
[345216366,1734091861961,-221.69,0.000298,31]
[345216367,1734091861971,-221.69,0.000298,31]
[345216368,1734091861981,-221.69,0.000298,31]
[345216369,1734091861992,-221.69,0.000298,31]
[345216370,1734091862003,-221.69,0.000298,31]
[345216371,1734091862018,-221.69,0.000298,31]
[345216372,1734091862029,-221.69,0.000298,31]
[345216373,1734091862039,-221.69,0.000298,31]
[345216374,1734091862050,-150.23979059,0.00029843,30]
[345216375,1734091862060,-200.56907352,0.00029843,30]
[345216376,1734091862071,-871.08,0.00029863,7]
[345216377,1734091862081,-500.0,0.00029863,7]
[345216378,1734091862094,-500.0,0.00029863,7]
[345216379,1734091862104,-1160.79,0.00029863,7]
[345216380,1734091862114,-500.0,0.00029863,7]
[345216381,1734091862125,-500.0,0.00029863,7]
[345216382,1734091862135,-901.64,0.00029863,7]
[345216383,1734091862144,-500.0,0.00029863,7]
[345216384,1734091862154,-502.03,0.00029863,7]
[345216385,1734091862164,-500.0,0.00029863,7]
[345216386,1734091862174,-500.0,0.00029863,7]
[345216387,1734091862184,-1260.84,0.00029863,7]
[345216388,1734091862193,-500.0,0.00029863,7]
[345216389,1734091862204,-500.0,0.00029863,7]
[345216390,1734091862214,-1225.31,0.00029863,7]
[345216391,1734091862224,-500.0,0.00029863,7]
[345216392,1734091862234,-500.0,0.00029863,7]
[345216393,1734091862244,-1341.25,0.00029863,7]
[345216394,1734091862254,-500.0,0.00029863,7]
[345216395,1734091862265,-575.59,0.00029863,7]
[345216396,1734091862275,-546.88,0.00029863,7]
[345216397,1734091862286,-500.0,0.00029863,7]
[345216398,1734091862296,-552.93,0.00029863,7]
[345216399,1734091862307,-651.03,0.00029863,7]
[345216400,1734091862318,-168.0,0.00029863,7]
[345216401,1734091862328,-1089.68,0.00029863,7]
[345216402,1734091862339,-500.0,0.00029863,7]
[345216403,1734091862350,-191.38692275,0.00029863,7]
[345216404,1734091862360,-733.84,0.00029863,7]
[345216405,1734091862370,-500.0,0.00029863,7]
[345216406,1734091862380,-500.0,0.00029863,7]
[345216407,1734091862391,-1107.91,0.00029863,7]
[345216408,1734091862400,-500.0,0.00029863,7]
[345216409,1734091862410,-684.71,0.00029863,7]
[345216410,1734091862419,-693.88,0.00029863,7]
[345216411,1734091862429,-857.5,0.00029863,7]
[345216412,1734091862439,-500.0,0.00029863,7]
[345216413,1734091862448,-1568.0,0.00029863,7]
[345216414,1734091862458,-1086.94,0.00029863,7]
[345216415,1734091862468,-500.0,0.00029863,7]
[345216416,1734091862478,-500.0,0.00029863,7]
[345216417,1734091862488,-1844.52,0.00029863,7]
[345216418,1734091862497,-500.0,0.00029863,7]
[345216419,1734091862507,-729.39,0.00029863,7]
[345216420,1734091862517,-500.0,0.00029863,7]
[345216421,1734091862527,-625.06,0.00029863,7]
[345216422,1734091862537,-500.0,0.00029863,7]
[345216423,1734091862547,-926.09,0.00029863,7]
[345216424,1734091862557,-500.0,0.00029863,7]
[345216425,1734091862568,-500.0,0.00029863,7]
[345216426,1734091862578,-500.0,0.00029863,7]
[345216427,1734091862587,-3595.28,0.00029863,7]
[345216428,1734091862599,-821.18,0.00029863,7]
[345216429,1734091862608,-535.82,0.00029863,7]
[345216430,1734091862617,-539.01,0.00029863,7]
[345216431,1734091862627,-819.26,0.00029863,7]
[345216432,1734091862638,-500.0,0.00029863,7]
[345216433,1734091862647,-500.0,0.00029863,7]
[345216434,1734091862658,-323.71139119,0.00029863,7]
[345216435,1734091862667,-500.0,0.00029863,7]
[345216436,1734091862677,-677.7,0.00029863,7]
[345216437,1734091862687,-568.12,0.00029863,7]
[345216438,1734091862697,-574.69,0.00029863,7]
[345216439,1734091862707,-500.0,0.00029863,7]
[345216440,1734091862717,-947.84,0.00029863,7]
[345216441,1734091862727,-500.0,0.00029863,7]
[345216442,1734091862736,-500.0,0.00029863,7]
[345216443,1734091862746,-608.85,0.00029863,7]
[345216444,1734091862756,-500.0,0.00029863,7]
[345216445,1734091862766,-2488.32,0.00029863,7]
[345216446,1734091862776,-500.0,0.00029863,7]
[345216447,1734091862786,-500.0,0.00029863,7]
[345216448,1734091862796,-876.08,0.00029863,7]
[345216449,1734091862806,-540.65,0.00029863,7]
[345216450,1734091862816,-506.88,0.00029863,7]
[345216451,1734091862826,-758.33,0.00029863,7]
[345216452,1734091862835,-500.0,0.00029863,7]
[345216453,1734091862848,-500.0,0.00029863,7]
[345216454,1734091862858,-500.0,0.00029863,7]
[345216455,1734091862867,-500.0,0.00029863,7]
[345216456,1734091862877,-661.92,0.00029863,7]
[345216457,1734091862887,-2149.23,0.00029863,7]
[345216458,1734091862897,-500.0,0.00029863,7]
[345216459,1734091862907,-500.0,0.00029863,7]
[345216460,1734091862917,-500.0,0.00029863,7]
[345216461,1734091862928,-552.33,0.00029863,7]
[345216462,1734091862938,-509.53,0.00029863,7]
[345216463,1734091862947,-500.0,0.00029863,7]
[345216464,1734091862958,-1839.89,0.00029863,7]
[345216465,1734091862968,-500.0,0.00029863,7]
[345216466,1734091862979,-500.0,0.00029863,7]
[345216467,1734091862990,-911.59,0.00029863,7]
[345216468,1734091863005,-500.0,0.00029863,7]
[345216469,1734091863015,-500.0,0.00029863,7]
[345216470,1734091863025,-1151.71,0.00029863,7]
[345216471,1734091863035,-3706.22,0.00029863,7]
[345216472,1734091863045,-550.01,0.00029863,7]
[345216473,1734091863056,-1556.05,0.00029863,7]
[345216474,1734091863067,-3961.78,0.00029863,7]
[345216475,1734091863081,-1079.48,0.00029863,7]
[345216476,1734091863093,-500.0,0.00029863,7]
[345216477,1734091863104,-1008.89,0.00029863,7]
[345216478,1734091863115,-500.0,0.00029863,7]
[345216479,1734091863125,-1365.17,0.00029863,7]
[345216480,1734091863137,-500.0,0.00029863,7]
[345216481,1734091863147,-500.0,0.00029863,7]
[345216482,1734091863158,-500.0,0.00029863,7]
[345216483,1734091863170,-531.52,0.00029863,7]
[345216484,1734091863180,-573.04,0.00029863,7]
[345216485,1734091863190,-500.0,0.00029863,7]
[345216486,1734091863202,-500.0,0.00029863,7]
[345216487,1734091863213,-500.0,0.00029863,7]
[345216488,1734091863223,-711.44,0.00029863,7]
[345216489,1734091863234,-3291.05,0.00029863,7]
[345216490,1734091863245,-763.56,0.00029863,7]
[345216491,1734091863254,-7606.93,0.00029863,7]
[345216492,1734091863265,-343.75264803,0.00029863,7]
[345216493,1734091863275,-1342.78,0.00029863,7]
[345216494,1734091863286,-4190.92,0.00029863,7]
[345216495,1734091863297,-1028.48,0.00029863,7]
[345216496,1734091863307,-520.06,0.00029863,7]
[345216497,1734091863317,-739.89,0.00029863,7]
[345216498,1734091863328,-1263.06,0.00029863,7]
[345216499,1734091863338,-1317.54,0.00029863,7]
[345216500,1734091863350,-2675.78,0.00029863,7]
[345216501,1734091863361,-500.0,0.00029863,7]
[345216502,1734091863371,-651.59,0.00029863,7]
[345216503,1734091863382,-507.9,0.00029863,7]
[345216504,1734091863393,-500.0,0.00029863,7]
[345216505,1734091863403,-500.0,0.00029863,7]
[345216506,1734091863413,-1455.5,0.00029863,7]
[345216507,1734091863423,-500.0,0.00029863,7]
[345216508,1734091863433,-1461.6,0.00029863,7]
[345216509,1734091863443,-835.44,0.00029863,7]
[345216510,1734091863452,-978.03,0.00029863,7]
[345216511,1734091863462,-555.87,0.00029863,7]
[345216512,1734091863473,-683.02,0.00029863,7]
[345216513,1734091863483,-500.0,0.00029863,7]
[345216514,1734091863494,-500.0,0.00029863,7]
[345216515,1734091863504,-914.56,0.00029863,7]
[345216516,1734091863514,-1797.32,0.00029863,7]
[345216517,1734091863525,-807.43,0.00029863,7]
[345216518,1734091863535,-839.4,0.00029863,7]
[345216519,1734091863545,-500.0,0.00029863,7]
[345216520,1734091863556,-500.0,0.00029863,7]
[345216521,1734091863567,-518.73,0.00029863,7]
[345216522,1734091863578,-758.44,0.00029863,7]
[345216523,1734091863589,-632.60690254,0.00029863,7]
[345216524,1734091863600,-5026.06,0.00029863,7]
[345216525,1734091863610,-552.47,0.00029863,7]
[345216526,1734091863620,-302.96970909,0.0002987,2]
[345216527,1734091863630,-302.96970909,0.0002987,2]
[345216528,1734091863640,-162.4,0.000299,2]
[345216529,1734091863650,-698.39324381,0.00029942,2]
[345216530,1734091863661,-500.0,0.00029966,14]
[345216531,1734091863671,-150.0,0.00029973,5]
[345216532,1734091863681,-500.0,0.00029975,14]
[345216533,1734091863691,-500.0,0.00029984,14]
[345216534,1734091863702,-6685.94356351,0.0002999,2]
[345216535,1734091863712,-500.0,0.00029992,14]
[345216536,1734091863722,-166.35797166,0.0003,120]
[345216537,1734091863732,-2000.0,0.0003,30]
[345216538,1734091863743,-405.76149731,0.0003,120]
[345216539,1734091863753,-1494.56154072,0.0003,2]
[345216540,1734091863763,-2000.0,0.0003,7]
[345216541,1734091863773,-168.30311298,0.0003,2]
[345216542,1734091863783,-759.72709669,0.0003,30]
[345216543,1734091863793,-10609.97490723,0.0003,30]
[345216544,1734091863803,-2058.8997576,0.0003,30]
[345216545,1734091863814,-5000.0,0.0003,3]
[345216546,1734091863824,-151.0,0.0003,120]
[345216547,1734091863833,-151.0,0.0003,120]
[345216548,1734091863846,-30183.0,0.0003,120]
[345216549,1734091863855,-3711.82246023,0.0003,30]
[345216550,1734091863865,-11826.85141453,0.0003,15]
[345216551,1734091863876,-2000.0,0.0003,120]
[345216552,1734091863886,-5042.06712127,0.0003,30]
[345216553,1734091863896,-1500.0,0.0003,2]
[345216554,1734091863907,-759.00848431,0.0003,2]
[345216555,1734091863917,-5815.09450251,0.0003,2]
[345216556,1734091863927,-1000.0488771,0.0003,30]
[345216557,1734091863937,-600.0,0.0003,2]
[345216558,1734091863947,-300.0,0.0003,2]
[345216559,1734091863957,-266.399999,0.0003,2]
[345216560,1734091863967,-3695.74294046,0.0003,120]
[345216561,1734091864117,-10947.47639793,0.0003,120]
[345216562,1734091864329,-751.4613,0.00027303,15]
[345216563,1734091864339,-674.16585277,0.00027397,7]
[345216564,1734091864541,160.685207,0.00013973,2]
[345216565,1734091864743,-160.685207,0.00024224,2]
[345216566,1734091864752,-312.63414723,0.00027397,7]
[345216567,1734091864762,-500.0,0.00027397,7]
[345216568,1734091864772,-701.49,0.00027671,7]
[345216569,1734091864781,-986.8,0.00027671,7]
[345216570,1734091864790,-500.0,0.00027671,7]
[345216571,1734091864800,-701.49,0.00027945,7]
[345216572,1734091864809,-986.8,0.00027945,7]
[345216573,1734091864819,-500.0,0.00027945,7]
[345216574,1734091864829,-701.49,0.00028219,7]
[345216575,1734091864838,-986.8,0.00028219,7]
[345216576,1734091864849,-500.0,0.00028219,7]
[345216577,1734091864858,-701.49,0.00028493,7]
[345216578,1734091864870,-986.8,0.00028493,7]
[345216579,1734091864879,-500.0,0.00028493,7]
[345216580,1734091864889,-986.8,0.00028767,7]
[345216581,1734091864899,-500.0,0.00028767,7]
[345216582,1734091864908,-701.49,0.00028767,7]
[345216583,1734091864917,-986.8,0.00029041,7]
[345216584,1734091864927,-500.0,0.00029041,7]
[345216585,1734091864936,-701.49,0.00029041,7]
[345216586,1734091864945,-986.8,0.00029315,7]
[345216587,1734091864955,-500.0,0.00029315,7]
[345216588,1734091864964,-701.49,0.00029315,7]
[345216589,1734091864975,-500.0,0.00029589,7]
[345216590,1734091864984,-500.0,0.00029589,7]
[345216591,1734091864995,-986.8,0.00029589,7]
[345216592,1734091865006,-701.49,0.00029589,7]
[345216593,1734091865016,-500.0,0.00029863,7]
[345216594,1734091865025,-500.0,0.00029863,7]
[345216595,1734091865035,-986.8,0.00029863,7]
[345216596,1734091865045,-701.49,0.00029863,7]
[345216597,1734091865055,-126834.83397643,0.0003,120]
[345216598,1734091865065,-10000.0,0.0003,20]
[345216599,1734091865074,-307244.10408772,0.0003,30]
[345216600,1734091865638,-10812.66813009,0.0003,30]
[345216601,1734091865650,-2468.7583295,0.0003,30]
[345216602,1734091865662,-492.98046976,0.0003,30]
[345216605,1734092629751,4328.24343129,0.00021,11]
[345216622,1734092925996,150.2621924,0.0002,2]
[345216624,1734092952313,159.935605,0.00013973,2]
[345216684,1734093032260,-359.92320334,0.00021246,2]
[345216690,1734093032325,-2216.49255113,0.00021246,2]
[345216692,1734093032337,-55.43196246,0.00021246,2]
[345216694,1734093032347,-166.0,0.00022,2]
[345216696,1734093032357,-159.935605,0.00022174,2]
[345216698,1734093032366,-39.68180803,0.00022395,2]
[345216701,1734093032382,-134.13419197,0.00022395,2]
[345216703,1734093032397,-1611.99432862,0.00024722,2]
[345216715,1734093032501,-4802.91424078,0.00024722,2]
[345216717,1734093032511,-196.000002,0.00024794,2]
[345216719,1734093032520,-300.0,0.00025007,2]
[345216721,1734093032529,-300.0,0.00025008,2]
[345216723,1734093032539,-484.8985722,0.00025011,2]
[345216725,1734093032548,-4918.3847817,0.00025011,2]
[345216728,1734093032564,-173.510313,0.00025088,2]
[345216729,1734093032574,-232.98339,0.00025246,2]
[345216731,1734093032584,-5572.2364688,0.00025356,2]
[345216733,1734093032595,-2383.0979479,0.00025558,2]
[345216736,1734093032605,-4080.9288354,0.00025558,2]
[345216738,1734093032615,-994.202734,0.00026,30]
[345216740,1734093032625,-219.2201635,0.0002607,2]
[345216742,1734093032636,-385.4714249,0.00026458,2]
[345216743,1734093032645,-150.0,0.00026908,2]
[345216746,1734093032656,-533.0,0.00026908,2]
[345216748,1734093032665,-2370.0,0.00026908,2]
[345216750,1734093032675,-2163.0,0.00026908,2]
[345216752,1734093032685,-420.0,0.00027091,2]
[345216753,1734093032694,-723.796,0.00027303,15]
[345216755,1734093032704,-7751.99999998,0.00027394,2]
[345216757,1734093032714,-500.0,0.00027397,7]
[345216759,1734093032725,-500.0,0.00027397,7]
[345216761,1734093032734,-500.0,0.00027397,7]
[345216763,1734093032743,-500.0,0.00027397,7]
[345216766,1734093032753,-500.0,0.00027397,7]
[345216768,1734093032763,-500.0,0.00027397,7]
[345216770,1734093032772,-500.0,0.00027397,7]
[345216772,1734093032782,-500.0,0.00027397,7]
[345216774,1734093032792,-500.0,0.00027397,7]
[345216776,1734093032801,-500.0,0.00027397,7]
[345216778,1734093032819,-500.0,0.00027397,7]
[345216780,1734093032830,-782.39,0.00027397,7]
[345216782,1734093032840,-500.0,0.00027397,7]
[345216784,1734093032849,-500.0,0.00027397,7]
[345216786,1734093032859,-500.0,0.00027397,7]
[345216788,1734093032869,-500.0,0.00027397,7]
[345216790,1734093032878,-500.0,0.00027397,7]
[345216792,1734093032888,-500.0,0.00027397,7]
[345216794,1734093032898,-500.0,0.00027397,7]
[345216796,1734093032908,-500.0,0.00027397,7]
[345216798,1734093032919,-500.0,0.00027397,7]
[345216800,1734093032928,-714.76,0.00027397,7]
[345216802,1734093032938,-500.0,0.00027397,7]
[345216804,1734093032947,-500.0,0.00027397,7]
[345216806,1734093032957,-635.65,0.00027397,7]
[345216808,1734093032967,-500.0,0.00027397,7]
[345216810,1734093032976,-500.0,0.00027397,7]
[345216812,1734093032986,-500.0,0.00027397,7]
[345216814,1734093032996,-500.0,0.00027397,7]
[345216816,1734093033006,-500.0,0.00027397,7]
[345216818,1734093033016,-500.0,0.00027397,7]
[345216820,1734093033027,-500.0,0.00027397,7]
[345216822,1734093033037,-500.0,0.00027397,7]
[345216824,1734093033047,-500.0,0.00027397,7]
[345216845,1734093033261,-500.0,0.00027397,7]
[345216848,1734093033273,-505.23155099,0.00027397,7]
[345216849,1734093033283,-500.0,0.00027397,7]
[345216852,1734093033293,-500.0,0.00027397,7]
[345216853,1734093033303,-1075.97,0.00027397,7]
[345216856,1734093033321,-168.0,0.00027397,7]
[345216858,1734093033330,-500.0,0.00027397,7]
[345216860,1734093033341,-500.0,0.00027397,7]
[345216861,1734093033353,-2097.25,0.00027397,7]
[345216862,1734093033364,-500.0,0.00027397,7]
[345216864,1734093033374,-646.28,0.00027397,7]
[345216866,1734093033384,-230.37354292,0.00027397,7]
[345216868,1734093033396,-442.74705885,0.00027397,7]
[345216870,1734093033407,-500.0,0.00027397,7]
[345216872,1734093033419,-500.0,0.00027397,7]
[345216874,1734093033429,-786.05,0.00027397,7]
[345216876,1734093033439,-500.0,0.00027397,7]
[345216878,1734093033449,-500.0,0.00027397,7]
[345216880,1734093033462,-500.0,0.00027397,7]
[345216882,1734093033473,-914.67,0.00027397,7]
[345216884,1734093033484,-634.04,0.00027397,7]
[345216886,1734093033493,-500.0,0.00027397,7]
[345216888,1734093033503,-500.0,0.00027397,7]
[345216890,1734093033513,-317.05603747,0.00027397,7]
[345216892,1734093033523,-540.22,0.00027397,7]
[345216894,1734093033533,-500.0,0.00027397,7]
[345216896,1734093033543,-500.0,0.00027397,7]
[345216898,1734093033553,-500.0,0.00027397,7]
[345216899,1734093033569,-500.0,0.00027397,7]
[345216901,1734093033580,-500.0,0.00027397,7]
[345216903,1734093033590,-500.0,0.00027397,7]
[345216905,1734093033600,-500.0,0.00027397,7]
[345216907,1734093033611,-573.26,0.00027397,7]
[345216909,1734093033620,-500.0,0.00027397,7]
[345216911,1734093033631,-500.0,0.00027397,7]
[345216913,1734093033642,-508.13,0.00027397,7]
[345216915,1734093033652,-500.0,0.00027397,7]
[345216917,1734093033664,-500.0,0.00027397,7]
[345216919,1734093033675,-500.0,0.00027397,7]
[345216921,1734093033685,-552.91,0.00027397,7]
[345216923,1734093033694,-421.04937549,0.00027397,7]
[345216925,1734093033704,-500.0,0.00027397,7]
[345216927,1734093033714,-1451.52,0.00027397,7]
[345216929,1734093033724,-500.0,0.00027397,7]
[345216931,1734093033734,-511.04,0.00027397,7]
[345216933,1734093033743,-500.0,0.00027397,7]
[345216935,1734093033753,-677.13,0.00027397,7]
[345216937,1734093033763,-2931.87,0.00027397,7]
[345216939,1734093033772,-500.0,0.00027397,7]
[345216941,1734093033782,-1188.22928957,0.00027397,7]
[345216984,1734093038372,-694.912,0.00027312,15]
[345216987,1734093038383,-65.49071043,0.00027397,7]
[345216990,1734093038393,-99.75007219,0.00027397,7]
[345217106,1734093043376,-667.3,0.00027312,15]
[345217108,1734093043386,-400.24992781,0.00027397,7]
[345217110,1734093043396,-63.10007234,0.00027397,7]
[345217114,1734093043541,-436.89992766,0.00027397,7]
[345217115,1734093043550,-500.0,0.00027397,7]
[345217116,1734093043564,-629.7,0.00027397,7]
[345217117,1734093043574,-500.0,0.00027397,7]
[345217118,1734093043583,-500.0,0.00027397,7]
[345217119,1734093043593,-500.0,0.00027397,7]
[345217120,1734093043602,-500.0,0.00027397,7]
[345217122,1734093043612,-406.88007214,0.00027397,7]
[345217138,1734093046395,-668.669,0.00027312,15]
[345217139,1734093046410,-221.68488207,0.00027397,7]
[345217182,1734094177993,159.935605,0.00013973,2]
[345217248,1734094232844,-721.80015194,0.000219,2]
[345217250,1734094232854,-167.0,0.00022,2]
[345217252,1734094232864,-159.935605,0.00023435,2]
[345217254,1734094232873,-2884.0,0.00025,2]
[345217256,1734094232883,-751.59125886,0.00025996,2]
[345217258,1734094232896,-219.84510114,0.00025996,2]
[345217260,1734094232905,-232.983391,0.00026138,2]
[345217262,1734094232915,-499.999999,0.00027,2]
[345217264,1734094232925,-300.0,0.000273,13]
[345217266,1734094232935,-640.429,0.00027312,15]
[345217268,1734094232945,-300.0,0.00027393,2]
[345217270,1734094232955,-300.0,0.00027394,2]
[345217272,1734094232964,-17318.45867109,0.00027397,2]
[345217273,1734094232976,-618.4720842,0.00027397,2]
[345217274,1734094232987,-1629.59939142,0.00027397,2]
[345217275,1734094232999,-24.65160448,0.00027397,7]
[345217279,1734094233083,-475.34839552,0.00027397,7]
[345217280,1734094233093,-500.0,0.00027397,7]
[345217281,1734094233104,-500.0,0.00027397,7]
[345217282,1734094233113,-500.0,0.00027397,7]
[345217283,1734094233123,-500.0,0.00027397,7]
[345217284,1734094233132,-500.0,0.00027397,7]
[345217285,1734094233142,-500.0,0.00027397,7]
[345217286,1734094233151,-500.0,0.00027397,7]
[345217287,1734094233161,-500.0,0.00027397,7]
[345217288,1734094233171,-500.0,0.00027397,7]
[345217289,1734094233181,-500.0,0.00027397,7]
[345217290,1734094233190,-549.38,0.00027397,7]
[345217291,1734094233200,-500.0,0.00027397,7]
[345217292,1734094233209,-500.0,0.00027397,7]
[345217293,1734094233219,-500.0,0.00027397,7]
[345217294,1734094233229,-500.0,0.00027397,7]
[345217295,1734094233238,-500.0,0.00027397,7]
[345217296,1734094233248,-500.0,0.00027397,7]
[345217297,1734094233257,-500.0,0.00027397,7]
[345217298,1734094233267,-500.0,0.00027397,7]
[345217299,1734094233276,-500.0,0.00027397,7]
[345217300,1734094233286,-500.0,0.00027397,7]
[345217301,1734094233296,-500.0,0.00027397,7]
[345217302,1734094233306,-500.0,0.00027397,7]
[345217303,1734094233315,-684.98,0.00027397,7]
[345217304,1734094233326,-500.0,0.00027397,7]
[345217305,1734094233335,-67.63839961,0.00027397,7]
[345217349,1734094238535,-587.0,0.00027312,15]
[345217351,1734094238545,-432.36160039,0.00027397,7]
[345217353,1734094238554,-648.92,0.00027397,7]
[345217356,1734094238564,-609.17,0.00027397,7]
[345217358,1734094238573,-500.0,0.00027397,7]
[345217360,1734094238583,-500.0,0.00027397,7]
[345217362,1734094238593,-500.0,0.00027397,7]
[345217364,1734094238603,-500.0,0.00027397,7]
[345217366,1734094238611,-500.0,0.00027397,7]
[345217367,1734094238621,-1031.14,0.00027397,7]
[345217369,1734094238630,-500.0,0.00027397,7]
[345217371,1734094238640,-168.0,0.00027397,7]
[345217373,1734094238649,-2009.87,0.00027397,7]
[345217376,1734094238659,-500.0,0.00027397,7]
[345217378,1734094238669,-500.0,0.00027397,7]
[345217379,1734094238678,-500.0,0.00027397,7]
[345217381,1734094238687,-619.35,0.00027397,7]
[345217383,1734094238696,-500.0,0.00027397,7]
[345217385,1734094238705,-500.0,0.00027397,7]
[345217387,1734094238715,-500.0,0.00027397,7]
[345217389,1734094238724,-753.3,0.00027397,7]
[345217391,1734094238734,-500.0,0.00027397,7]
[345217394,1734094238753,-876.56,0.00027397,7]
[345217396,1734094238767,-607.63,0.00027397,7]
[345217398,1734094238776,-500.0,0.00027397,7]
[345217400,1734094238786,-525.95,0.00027397,7]
[345217402,1734094238796,-500.0,0.00027397,7]
[345217404,1734094238805,-500.0,0.00027397,7]
[345217406,1734094238815,-500.0,0.00027397,7]
[345217408,1734094238825,-517.71,0.00027397,7]
[345217410,1734094238834,-497.4182619,0.00027397,7]
[345217413,1734094238844,-500.0,0.00027397,7]
[345217415,1734094238854,-500.0,0.00027397,7]
[345217417,1734094238864,-500.0,0.00027397,7]
[345217419,1734094238873,-380.97451995,0.00027397,7]
[345217421,1734094238887,-119.02548005,0.00027397,7]
[345217423,1734094238897,-529.62376842,0.00027397,7]
[345217425,1734094238907,-500.0,0.00027397,7]
[345217427,1734094238916,-500.0,0.00027397,7]
[345217429,1734094238926,-500.0,0.00027397,7]
[345217431,1734094238936,-500.0,0.00027397,7]
[345217433,1734094238946,-500.0,0.00027397,7]
[345217435,1734094238956,-529.87,0.00027397,7]
[345217437,1734094238966,-500.0,0.00027397,7]
[345217438,1734094238976,-1391.04,0.00027397,7]
[345217439,1734094238986,-500.0,0.00027397,7]
[345217440,1734094238996,-500.0,0.00027397,7]
[345217441,1734094239010,-500.0,0.00027397,7]
[345217442,1734094239019,-500.0,0.00027397,7]
[345217443,1734094239029,-1201.48,0.00027397,7]
[345217444,1734094239038,-500.0,0.00027397,7]
[345217445,1734094239047,-500.0,0.00027397,7]
[345217446,1734094239059,-500.0,0.00027397,7]
[345217447,1734094239068,-500.0,0.00027397,7]
[345217448,1734094239078,-500.0,0.00027397,7]
[345217449,1734094239088,-907.7,0.00027397,7]
[345217450,1734094239097,-500.0,0.00027397,7]
[345217451,1734094239110,-603.46,0.00027397,7]
[345217452,1734094239119,-500.0,0.00027397,7]
[345217453,1734094239129,-500.0,0.00027397,7]
[345217454,1734094239139,-2284.85,0.00027397,7]
[345217455,1734094239148,-500.0,0.00027397,7]
[345217456,1734094239157,-500.0,0.00027397,7]
[345217458,1734094239167,-500.0,0.00027397,7]
[345217460,1734094239176,-500.0,0.00027397,7]
[345217462,1734094239186,-53.85247844,0.00027397,7]
[345217691,1734095433028,-393.15366656,0.000218,2]
[345217693,1734095433038,-184.93296531,0.00027297,2]
[345217695,1734095433054,-732.25425844,0.00027297,2]
[345217697,1734095433064,-300.0,0.000273,13]
[345217698,1734095433074,-300.0,0.00027309,2]
[345217700,1734095433084,-300.0,0.00027309,2]
[345217702,1734095433094,-4334.30808841,0.0002731,2]
[345217705,1734095433107,-1364.15590357,0.0002731,2]
[345217707,1734095433119,-345.38434701,0.0002731,2]
[345217709,1734095433129,-564.43,0.00027312,15]
[345217710,1734095433139,-8633.35981972,0.00027397,2]
[345217713,1734095433160,-541.8,0.00027397,2]
[345217715,1734095433172,-608.10525363,0.00027397,2]
[345217716,1734095433182,-461.9581944,0.00027397,7]
[345217718,1734095433192,-500.0,0.00027397,7]
[345217720,1734095433203,-500.0,0.00027397,7]